fUSD/lending_fUSD_20251117
["ID","MTS","AMOUNT","RATE_DAILY","PERIOD"]
[394164820,1763338248068,-151.0,0.00034319,31]
[394164821,1763338248078,-151.0,0.00034319,31]
[394164822,1763338248089,-911.058845,0.00034319,31]
[394164823,1763338248098,-911.058845,0.00034319,31]
[394164824,1763338248108,-151.0,0.00034319,31]
[394164825,1763338248117,-911.058845,0.00034319,31]
[394164826,1763338248126,-911.058845,0.00034319,31]
[394164827,1763338248135,-151.0,0.00034319,31]
[394164828,1763338248145,-151.0,0.00034319,31]
[394164829,1763338248154,-151.0,0.00034319,31]
[394164830,1763338248164,-151.0,0.00034319,31]
[394164831,1763338248173,-200.682507,0.00034319,31]
[394164832,1763338248183,-151.0,0.00034319,31]
[394164833,1763338248192,-200.682507,0.00034319,31]
[394164834,1763338248202,-200.682507,0.00034319,31]
[394164835,1763338248211,-200.682507,0.00034319,31]
[394164836,1763338248221,-151.0,0.00034319,31]
[394164837,1763338248231,-151.0,0.00034319,31]
[394164838,1763338248243,-151.0,0.00034319,31]
[394164839,1763338248253,-151.0,0.00034319,31]
[394164840,1763338248262,-151.0,0.00034319,31]
[394164841,1763338248271,-151.0,0.00034319,31]
[394164842,1763338248280,-151.0,0.00034319,31]
[394164843,1763338248290,-331.436966,0.00034319,31]
[394164844,1763338248299,-237.124345,0.00034319,31]
[394164845,1763338248309,-151.0,0.00034319,31]
[394164846,1763338248318,-331.436966,0.00034319,31]
[394164847,1763338248328,-331.436966,0.00034319,31]
[394164848,1763338248338,-151.0,0.00034319,31]
[394164849,1763338248346,-258.910321,0.00034319,31]
[394164850,1763338248355,-331.436966,0.00034319,31]
[394164851,1763338248365,-151.0,0.00034319,31]
[394164852,1763338248375,-151.0,0.00034319,31]
[394164853,1763338248385,-151.0,0.00034319,31]
[394164854,1763338248396,-198.244511,0.00034319,31]
[394164855,1763338248406,-151.0,0.00034319,31]
[394164856,1763338248417,-198.244511,0.00034319,31]
[394164857,1763338248427,-151.0,0.00034319,31]
[394164858,1763338248437,-198.244511,0.00034319,31]
[394164859,1763338248447,-198.244511,0.00034319,31]
[394164860,1763338248457,-151.0,0.00034319,31]
[394164861,1763338248467,-151.0,0.00034319,31]
[394164862,1763338248477,-151.0,0.00034319,31]
[394164863,1763338248488,-151.0,0.00034319,31]
[394164864,1763338248498,-151.0,0.00034319,31]
[394164865,1763338248508,-151.0,0.00034319,31]
[394164866,1763338248518,-526.139129,0.00034319,31]
[394164867,1763338248530,-526.139129,0.00034319,31]
[394164868,1763338248540,-151.0,0.00034319,31]
[394164869,1763338248550,-526.139129,0.00034319,31]
[394164870,1763338248560,-151.0,0.00034319,31]
[394164871,1763338248570,-526.139129,0.00034319,31]
[394164872,1763338248580,-151.0,0.00034319,31]
[394164873,1763338248590,-151.0,0.00034319,31]
[394164874,1763338248600,-991.526894,0.00034319,30]
[394164875,1763338248610,-151.0,0.00034319,31]
[394164876,1763338248619,-991.526894,0.00034319,30]
[394164877,1763338248627,-280.790532,0.00034319,31]
[394164878,1763338248637,-151.0,0.00034319,31]
[394164879,1763338248647,-991.526894,0.00034319,30]
[394164880,1763338248657,-280.790532,0.00034319,31]
[394164881,1763338248667,-151.0,0.00034319,31]
[394164882,1763338248681,-991.526894,0.00034319,30]
[394164883,1763338248691,-280.790532,0.00034319,31]
[394164884,1763338248702,-151.0,0.00034319,31]
[394164885,1763338248714,-280.790532,0.00034319,31]
[394164886,1763338248723,-151.0,0.00034319,31]
[394164887,1763338248743,-161.544794,0.00034319,31]
[394164888,1763338248755,-252.113073,0.00034319,31]
[394164889,1763338248765,-161.544794,0.00034319,31]
[394164890,1763338248774,-252.113073,0.00034319,31]
[394164891,1763338248784,-161.544794,0.00034319,31]
[394164892,1763338248795,-252.113073,0.00034319,31]
[394164893,1763338248805,-161.544794,0.00034319,31]
[394164894,1763338248815,-252.113073,0.00034319,31]
[394164895,1763338248825,-151.0,0.00034319,31]
[394164896,1763338248834,-151.0,0.00034319,31]
[394164897,1763338248845,-151.0,0.00034319,31]
[394164898,1763338248855,-151.0,0.00034319,31]
[394164899,1763338248864,-151.0,0.00034319,31]
[394164900,1763338248874,-151.0,0.00034319,31]
[394164901,1763338248884,-151.0,0.00034319,31]
[394164902,1763338248894,-151.0,0.00034319,31]
[394164903,1763338248904,-151.0,0.00034319,31]
[394164904,1763338248913,-170.256797,0.00034319,31]
[394164905,1763338248923,-151.0,0.00034319,31]
[394164906,1763338248933,-151.0,0.00034319,31]
[394164907,1763338248943,-151.0,0.00034319,31]
[394164908,1763338248953,-151.0,0.00034319,31]
[394164909,1763338248963,-151.0,0.00034319,31]
[394164910,1763338248973,-150.0,0.00034537,4]
[394164911,1763338248984,-29051.93641551,0.00034538,2]
[394164912,1763338248996,-150.0,0.00034793,9]
[394164913,1763338249006,-488.0,0.00034794,9]
[394164914,1763338249016,-1155.91447324,0.00035,120]
[394164915,1763338249026,-479.06402154,0.00035,30]
[394164916,1763338249035,-300.0,0.00035,120]
[394164917,1763338249047,-213.87,0.00035052,2]
[394164918,1763338249057,-5321.68,0.000352,14]
[394164919,1763338249068,-150.0,0.00035214,2]
[394164920,1763338249079,-213.87,0.00035311,2]
[394164921,1763338249090,-486.0,0.0003538,2]
[394164922,1763338249101,-3310.93169692,0.00035391,2]
[394164923,1763338249111,-150.0,0.00035479,8]
[394164924,1763338249123,-151.0,0.000355,31]
[394164925,1763338249134,-151.0,0.000355,31]
[394164926,1763338249144,-151.0,0.000355,31]
[394164927,1763338249154,-151.0,0.000355,31]
[394164928,1763338249165,-619.688959,0.000355,31]
[394164929,1763338249175,-1471.1498,0.000355,31]
[394164930,1763338249186,-619.688959,0.000355,31]
[394164931,1763338249196,-1471.1498,0.000355,31]
[394164932,1763338249207,-619.688959,0.000355,31]
[394164933,1763338249217,-1471.1498,0.000355,31]
[394164934,1763338249227,-619.688959,0.000355,31]
[394164935,1763338249239,-1471.1498,0.000355,31]
[394164936,1763338249249,-151.0,0.000355,30]
[394164937,1763338249260,-210.48475,0.000355,31]
[394164938,1763338249270,-210.48475,0.000355,31]
[394164939,1763338249281,-151.0,0.000355,31]
[394164940,1763338249291,-210.48475,0.000355,31]
[394164941,1763338249303,-151.0,0.000355,31]
[394164942,1763338249315,-210.48475,0.000355,31]
[394164943,1763338249325,-151.0,0.000355,31]
[394164944,1763338249335,-162.64878142,0.00035548,2]
[394164945,1763338249345,-500.0,0.00035616,2]
[394164946,1763338249355,-500.0,0.00035616,2]
[394164947,1763338249365,-500.0,0.00035616,2]
[394164948,1763338249376,-500.0,0.00035616,2]
[394164949,1763338249386,-500.0,0.00035616,2]
[394164950,1763338249395,-500.0,0.00035616,2]
[394164951,1763338249405,-1000.0,0.00035616,2]
[394164952,1763338249415,-500.0,0.00035616,2]
[394164953,1763338249424,-488.0,0.00035616,10]
[394164954,1763338249434,-3990.69,0.00035616,2]
[394164955,1763338249444,-500.0,0.00035616,2]
[394164956,1763338249455,-500.0,0.00035616,2]
[394164957,1763338249466,-300.0,0.00035616,2]
[394164958,1763338249477,-1006.13,0.00035616,2]
[394164959,1763338249487,-300.0,0.00035616,2]
[394164960,1763338249497,-6000.0,0.00035616,5]
[394164961,1763338249507,-500.0,0.00035616,10]
[394164962,1763338249517,-150.0,0.00035616,2]
[394164963,1763338249528,-500.0,0.00035616,2]
[394164964,1763338249538,-300.0,0.00035616,120]
[394164965,1763338249548,-180.672913,0.00035616,31]
[394164966,1763338249558,-180.672913,0.00035616,31]
[394164967,1763338249568,-180.672913,0.00035616,31]
[394164968,1763338249579,-180.672913,0.00035616,31]
[394164969,1763338249589,-150.0,0.00035671,2]
[394164970,1763338249599,-152.0,0.00035699,5]
[394164971,1763338249610,-150.0,0.00035726,2]
[394164972,1763338249620,-395.77,0.0003575,60]
[394164973,1763338249631,-225.84,0.00035753,2]
[394164974,1763338249642,-150.0,0.00035753,2]
[394164975,1763338249652,-208.22224658,0.0003578,2]
[394164976,1763338249663,-167.20243487,0.00035784,8]
[394164977,1763338249680,-1556.2533384,0.00035784,2]
[394164978,1763338249690,-218.32,0.00035799,2]
[394164979,1763338249704,-1176.95,0.000358,2]
[394164980,1763338249716,-447.0,0.000358,2]
[394164981,1763338249727,-987.0,0.000358,2]
[394164982,1763338249739,-304.0,0.000358,2]
[394164983,1763338249750,-150.0,0.00035829,60]
[394164984,1763338249760,-995.65004,0.00035888,30]
[394164985,1763338249771,-500.0,0.0003589,2]
[394164986,1763338249782,-500.0,0.0003589,2]
[394164987,1763338249792,-500.0,0.0003589,2]
[394164988,1763338249803,-500.0,0.0003589,2]
[394164989,1763338249813,-624.55550352,0.0003589,2]
[394164990,1763338249823,-500.0,0.0003589,2]
[394164991,1763338249833,-500.0,0.0003589,2]
[394164992,1763338249843,-1000.0,0.0003589,2]
[394164993,1763338249853,-500.0,0.0003589,2]
[394164994,1763338249863,-3990.69,0.0003589,2]
[394164995,1763338249873,-500.0,0.0003589,2]
[394164996,1763338249883,-500.0,0.0003589,2]
[394164997,1763338249893,-300.0,0.0003589,2]
[394164998,1763338249903,-1006.13,0.0003589,2]
[394164999,1763338249913,-300.0,0.0003589,2]
[394165000,1763338249924,-3616.0,0.0003589,5]
[394165001,1763338249934,-500.0,0.0003589,10]
[394165002,1763338249944,-500.0,0.0003589,2]
[394165003,1763338249954,-384.0,0.0003589,30]
[394165004,1763338249964,-218.32,0.00035981,2]
[394165005,1763338249975,-150.0,0.00035998,10]
[394165006,1763338249985,-150.0,0.00035999,31]
[394165007,1763338249996,-150.0,0.00035999,28]
[394165008,1763338250006,-1155.91447324,0.00036,120]
[394165009,1763338250017,-5539.77,0.00036,15]
[394165010,1763338250027,-1000.0,0.00036,120]
[394165011,1763338250037,-1000.0,0.00036,120]
[394165012,1763338250047,-384.0,0.00036,30]
[394165013,1763338250057,-151.0,0.00036,31]
[394165014,1763338250067,-151.0,0.00036,31]
[394165015,1763338250077,-151.0,0.00036,31]
[394165016,1763338250088,-151.0,0.00036,31]
[394165017,1763338250098,-156.693005,0.00036,31]
[394165018,1763338250108,-152.860398,0.00036,31]
[394165019,1763338250119,-151.0,0.00036,31]
[394165020,1763338250129,-151.0,0.00036,31]
[394165021,1763338250139,-207.395912,0.00036,31]
[394165022,1763338250149,-151.0,0.00036,31]
[394165023,1763338250159,-181.956497,0.00036,31]
[394165024,1763338250169,-151.0,0.00036,31]
[394165025,1763338250179,-151.0,0.00036,31]
[394165026,1763338250189,-151.0,0.00036,31]
[394165027,1763338250199,-151.0,0.00036,31]
[394165028,1763338250209,-151.0,0.00036,31]
[394165029,1763338250219,-151.0,0.00036,31]
[394165030,1763338250229,-151.0,0.00036,31]
[394165031,1763338250239,-151.0,0.00036,31]
[394165032,1763338250249,-151.0,0.00036,31]
[394165033,1763338250260,-151.0,0.00036,31]
[394165034,1763338250270,-151.0,0.00036,31]
[394165035,1763338250281,-151.0,0.00036,31]
[394165036,1763338250291,-151.674042,0.00036,31]
[394165037,1763338250301,-151.0,0.00036,31]
[394165038,1763338250311,-151.0,0.00036,31]
[394165039,1763338250322,-151.0,0.00036,31]
[394165040,1763338250332,-320.063734,0.00036,31]
[394165041,1763338250342,-320.063734,0.00036,31]
[394165042,1763338250352,-320.063734,0.00036,31]
[394165043,1763338250363,-320.063734,0.00036,31]
[394165044,1763338250373,-3430.0,0.0003603,2]
[394165045,1763338250382,-718.722,0.0003603,2]
[394165046,1763338250392,-1348.318,0.0003603,2]
[394165047,1763338250402,-575.0,0.0003603,2]
[394165048,1763338250413,-821.0,0.0003603,2]
[394165049,1763338250423,-1599.0,0.0003603,2]
[394165050,1763338250433,-1275.0,0.0003603,2]
[394165051,1763338250446,-814.0,0.0003603,2]
[394165052,1763338250457,-907.0,0.0003603,2]
[394165053,1763338250468,-1190.0,0.0003603,2]
[394165054,1763338250478,-338.0,0.0003608,2]
[394165055,1763338250489,-995.65004,0.00036088,30]
[394165056,1763338250500,-787.47,0.000361,30]
[394165057,1763338250510,-1513.54976261,0.00036154,2]
[394165058,1763338250523,-500.0,0.00036164,2]
[394165059,1763338250534,-500.0,0.00036164,2]
[394165060,1763338250544,-500.0,0.00036164,2]
[394165061,1763338250554,-500.0,0.00036164,2]
[394165062,1763338250564,-500.0,0.00036164,2]
[394165063,1763338250574,-365.38581755,0.00036164,2]
[394165064,1763338250584,-1000.0,0.00036164,2]
[394165065,1763338250594,-3990.69,0.00036164,2]
[394165066,1763338250604,-500.0,0.00036164,2]
[394165067,1763338250614,-500.0,0.00036164,2]
[394165068,1763338250624,-300.0,0.00036164,2]
[394165069,1763338250634,-1006.13,0.00036164,2]
[394165070,1763338250644,-300.0,0.00036164,2]
[394165071,1763338250655,-181.39974187,0.00036164,10]
[394165072,1763338250665,-500.0,0.00036164,2]
[394165073,1763338250679,-384.0,0.00036164,30]
[394165074,1763338250689,-610.98,0.000362,14]
[394165075,1763338250699,-338.0,0.00036216,2]
[394165076,1763338250710,-177.32,0.00036274,2]
[394165077,1763338250721,-995.65004,0.00036288,30]
[394165078,1763338250734,-338.0,0.00036317,120]
[394165079,1763338250746,-1513.54976261,0.00036385,2]
[394165080,1763338250756,-150.0,0.00036437,11]
[394165081,1763338250767,-500.0,0.00036438,2]
[394165082,1763338250777,-500.0,0.00036438,2]
[394165083,1763338250787,-500.0,0.00036438,2]
[394165084,1763338250797,-500.0,0.00036438,2]
[394165085,1763338250806,-190.56920806,0.00036438,2]
[394165086,1763338250816,-1000.0,0.00036438,2]
[394165087,1763338250826,-511.61,0.00036438,11]
[394165088,1763338250836,-3990.69,0.00036438,2]
[394165089,1763338250846,-500.0,0.00036438,2]
[394165090,1763338250856,-500.0,0.00036438,2]
[394165091,1763338250866,-300.0,0.00036438,2]
[394165092,1763338250875,-1006.13,0.00036438,2]
[394165093,1763338250885,-300.0,0.00036438,2]
[394165094,1763338250895,-500.0,0.00036438,2]
[394165095,1763338250905,-384.0,0.00036438,30]
[394165096,1763338250915,-151.0,0.00036478,31]
[394165097,1763338250925,-154.346604,0.00036478,31]
[394165098,1763338250935,-180.672913,0.00036478,31]
[394165099,1763338250944,-180.672913,0.00036478,31]
[394165100,1763338250954,-180.672913,0.00036478,31]
[394165101,1763338250964,-180.672913,0.00036478,31]
[394165102,1763338250974,-151.0,0.00036478,31]
[394165103,1763338250984,-151.0,0.00036478,31]
[394165104,1763338250996,-995.65004,0.00036488,30]
[394165105,1763338251006,-244.604031,0.00036488,31]
[394165106,1763338251016,-244.604031,0.00036488,31]
[394165107,1763338251026,-244.604031,0.00036488,31]
[394165108,1763338251036,-244.604031,0.00036488,31]
[394165109,1763338251046,-151.0,0.00036488,31]
[394165110,1763338251056,-151.0,0.00036488,31]
[394165111,1763338251066,-151.0,0.00036488,31]
[394165112,1763338251076,-151.0,0.00036488,31]
[394165113,1763338251086,-151.0,0.00036488,31]
[394165114,1763338251096,-151.0,0.00036488,31]
[394165115,1763338251106,-191.257455,0.00036488,31]
[394165116,1763338251116,-365.1992,0.00036488,31]
[394165117,1763338251125,-151.0,0.00036488,31]
[394165118,1763338251135,-365.1992,0.00036488,31]
[394165119,1763338251146,-365.1992,0.00036488,31]
[394165120,1763338251161,-365.1992,0.00036488,31]
[394165121,1763338251173,-151.0,0.00036488,31]
[394165122,1763338251183,-237.225406,0.00036488,31]
[394165123,1763338251193,-158.393141,0.00036488,31]
[394165124,1763338251203,-151.0,0.00036488,31]
[394165125,1763338251218,-151.0,0.00036488,31]
[394165126,1763338251228,-151.0,0.00036488,31]
[394165127,1763338251239,-151.0,0.00036488,31]
[394165128,1763338251249,-201.350748,0.00036488,15]
[394165129,1763338251259,-151.0,0.00036488,31]
[394165130,1763338251269,-151.0,0.00036488,31]
[394165131,1763338251279,-151.0,0.00036488,31]
[394165132,1763338251290,-201.350748,0.00036488,15]
[394165133,1763338251301,-151.0,0.00036488,31]
[394165134,1763338251311,-201.350748,0.00036488,15]
[394165135,1763338251322,-201.350748,0.00036488,15]
[394165136,1763338251332,-151.0,0.00036488,31]
[394165137,1763338251342,-151.0,0.00036488,31]
[394165138,1763338251352,-151.0,0.00036488,31]
[394165139,1763338251364,-500.0,0.00036488,30]
[394165140,1763338251375,-500.0,0.00036488,30]
[394165141,1763338251387,-500.0,0.00036488,30]
[394165142,1763338251633,-500.0,0.00036488,30]
[394165143,1763338251643,-500.0,0.00036488,30]
[394165144,1763338251653,-500.0,0.00036488,30]
[394165145,1763338251664,-500.0,0.00036488,30]
[394165146,1763338251675,-500.0,0.00036488,30]
[394165147,1763338251686,-500.0,0.00036488,30]
[394165148,1763338251696,-500.0,0.00036488,30]
[394165149,1763338251705,-500.0,0.00036488,30]
[394165150,1763338251715,-500.0,0.00036488,30]
[394165151,1763338251725,-500.0,0.00036488,30]
[394165152,1763338251735,-500.0,0.00036488,30]
[394165153,1763338251746,-500.0,0.00036488,30]
[394165154,1763338251756,-500.0,0.00036488,30]
[394165155,1763338251765,-500.0,0.00036488,30]
[394165156,1763338251775,-500.0,0.00036488,30]
[394165157,1763338251785,-500.0,0.00036488,30]
[394165158,1763338251794,-500.0,0.00036488,30]
[394165159,1763338251804,-500.0,0.00036488,30]
[394165160,1763338251814,-500.0,0.00036488,30]
[394165161,1763338251823,-500.0,0.00036488,30]
[394165162,1763338251832,-500.0,0.00036488,30]
[394165163,1763338251842,-500.0,0.00036488,30]
[394165164,1763338251851,-500.0,0.00036488,30]
[394165165,1763338251860,-500.0,0.00036488,30]
[394165166,1763338251870,-500.0,0.00036488,30]
[394165167,1763338251879,-500.0,0.00036488,30]
[394165168,1763338251889,-500.0,0.00036488,30]
[394165169,1763338251899,-500.0,0.00036488,30]
[394165170,1763338251908,-500.0,0.00036488,30]
[394165171,1763338251917,-500.0,0.00036488,30]
[394165172,1763338251927,-500.0,0.00036488,30]
[394165173,1763338251936,-500.0,0.00036488,30]
[394165174,1763338251945,-500.0,0.00036488,30]
[394165175,1763338251954,-500.0,0.00036488,30]
[394165176,1763338251964,-500.0,0.00036488,30]
[394165177,1763338251973,-500.0,0.00036488,30]
[394165178,1763338251982,-500.0,0.00036488,30]
[394165179,1763338251992,-500.0,0.00036488,30]
[394165180,1763338252001,-500.0,0.00036488,30]
[394165181,1763338252011,-500.0,0.00036488,30]
[394165182,1763338252020,-500.0,0.00036488,30]
[394165183,1763338252030,-500.0,0.00036488,30]
[394165184,1763338252039,-500.0,0.00036488,30]
[394165185,1763338252048,-500.0,0.00036488,30]
[394165186,1763338252058,-500.0,0.00036488,30]
[394165187,1763338252073,-500.0,0.00036488,30]
[394165188,1763338252084,-500.0,0.00036488,30]
[394165189,1763338252094,-500.0,0.00036488,30]
[394165190,1763338252104,-500.0,0.00036488,30]
[394165191,1763338252114,-521.31958218,0.00036488,30]
[394165192,1763338252123,-500.0,0.00036488,30]
[394165193,1763338252133,-500.0,0.00036488,30]
[394165194,1763338252143,-500.0,0.00036488,30]
[394165195,1763338252152,-500.0,0.00036488,30]
[394165196,1763338252161,-500.0,0.00036488,30]
[394165197,1763338252173,-500.0,0.00036488,30]
[394165198,1763338252183,-500.0,0.00036488,30]
[394165199,1763338252194,-500.0,0.00036488,30]
[394165200,1763338252204,-644.2324036,0.00036488,30]
[394165201,1763338252214,-500.0,0.00036488,30]
[394165202,1763338252224,-541.06030706,0.00036488,30]
[394165203,1763338252234,-500.0,0.00036488,30]
[394165204,1763338252245,-500.0,0.00036488,30]
[394165205,1763338252255,-500.0,0.00036488,30]
[394165206,1763338252264,-500.0,0.00036488,30]
[394165207,1763338252274,-500.0,0.00036488,30]
[394165208,1763338252283,-500.0,0.00036488,30]
[394165209,1763338252291,-500.0,0.00036488,30]
[394165210,1763338252301,-594.47343868,0.00036488,30]
[394165211,1763338252310,-967.20084997,0.00036488,30]
[394165212,1763338252319,-500.0,0.00036488,30]
[394165213,1763338252329,-500.0,0.00036488,30]
[394165214,1763338252338,-500.0,0.00036488,30]
[394165215,1763338252347,-500.0,0.00036488,30]
[394165216,1763338252356,-500.0,0.00036488,30]
[394165217,1763338252366,-500.0,0.00036488,30]
[394165218,1763338252375,-500.0,0.00036488,30]
[394165219,1763338252385,-500.0,0.00036488,30]
[394165220,1763338252395,-150.0,0.00036499,14]
[394165221,1763338252404,-550.22,0.00036575,2]
[394165222,1763338252414,-550.22,0.00036575,2]
[394165223,1763338252424,-300.0,0.00036575,2]
[394165224,1763338252433,-177.32,0.00036603,2]
[394165225,1763338252443,-177.32,0.00036603,2]
[394165226,1763338252452,-177.32,0.00036603,2]
[394165227,1763338252463,-1513.54976261,0.00036629,2]
[394165228,1763338252472,-62620.26309221,0.0003663,2]
[394165229,1763338252481,-995.65004,0.00036688,30]
[394165230,1763338252491,-6488.0,0.0003671,2]
[394165231,1763338252501,-1604.0,0.0003671,2]
[394165232,1763338252512,-500.0,0.00036712,2]
[394165233,1763338252521,-500.0,0.00036712,2]
[394165234,1763338252531,-500.0,0.00036712,2]
[394165235,1763338252540,-500.0,0.00036712,2]
[394165236,1763338252549,-1000.0,0.00036712,2]
[394165237,1763338252559,-330.46504681,0.00036712,2]
[394165238,1763338252568,-376.52156309,0.00036712,2]
[394165239,1763338252578,-3990.69,0.00036712,2]
[394165240,1763338252587,-500.0,0.00036712,2]
[394165241,1763338252596,-500.0,0.00036712,2]
[394165242,1763338252606,-300.0,0.00036712,2]
[394165243,1763338252615,-1006.13,0.00036712,2]
[394165244,1763338252625,-300.0,0.00036712,2]
[394165245,1763338252635,-368.19264913,0.00036712,2]
[394165246,1763338252644,-500.0,0.00036712,2]
[394165247,1763338252654,-384.0,0.00036712,30]
[394165248,1763338252665,-150.0,0.00036792,30]
[394165249,1763338252675,-151.0,0.00036835,31]
[394165250,1763338252686,-156.258059,0.00036835,31]
[394165251,1763338252695,-151.0,0.00036835,31]
[394165252,1763338252705,-995.65004,0.00036888,30]
[394165253,1763338252716,-1513.54976262,0.00036895,2]
[394165254,1763338252725,-150.0,0.00036908,120]
[394165255,1763338252735,-151.0,0.00036931,31]
[394165256,1763338252745,-151.0,0.00036931,31]
[394165257,1763338252754,-151.0,0.00036931,31]
[394165258,1763338252763,-151.0,0.00036931,30]
[394165259,1763338252772,-151.0,0.00036931,31]
[394165260,1763338252782,-151.0,0.00036931,31]
[394165261,1763338252795,-151.0,0.00036931,31]
[394165262,1763338252806,-151.0,0.00036931,31]
[394165263,1763338252815,-159.805861,0.00036931,31]
[394165264,1763338252825,-159.805861,0.00036931,31]
[394165265,1763338252834,-159.805861,0.00036931,31]
[394165266,1763338252847,-159.805861,0.00036931,31]
[394165267,1763338252856,-151.0,0.00036931,31]
[394165268,1763338252866,-151.0,0.00036931,31]
[394165269,1763338252877,-151.0,0.00036931,31]
[394165270,1763338252886,-151.0,0.00036931,31]
[394165271,1763338252896,-219.66440422,0.00036936,2]
[394165272,1763338252906,-175.94451,0.0003695,2]
[394165273,1763338252915,-500.0,0.00036963,5]
[394165274,1763338252925,-1100.3189612,0.00036966,2]
[394165275,1763338252934,-2919.6324713,0.00036966,2]
[394165276,1763338252943,-864.4073129,0.00036966,2]
[394165277,1763338252953,-10279.4468037,0.00036966,2]
[394165278,1763338252963,-150.0,0.00036966,7]
[394165279,1763338252972,-150.0,0.00036985,15]
[394165280,1763338252981,-500.0,0.00036986,2]
[394165281,1763338252991,-500.0,0.00036986,2]
[394165282,1763338253000,-500.0,0.00036986,2]
[394165283,1763338253010,-500.0,0.00036986,2]
[394165284,1763338253019,-1000.0,0.00036986,2]
[394165285,1763338253030,-3990.69,0.00036986,2]
[394165286,1763338253039,-500.0,0.00036986,2]
[394165287,1763338253049,-500.0,0.00036986,2]
[394165288,1763338253058,-300.0,0.00036986,2]
[394165289,1763338253068,-1006.13,0.00036986,2]
[394165290,1763338253078,-300.0,0.00036986,2]
[394165291,1763338253089,-500.0,0.00036986,15]
[394165292,1763338253108,-500.0,0.00036986,15]
[394165293,1763338253119,-500.0,0.00036986,15]
[394165294,1763338253130,-500.0,0.00036986,15]
[394165295,1763338253141,-188.24571034,0.00036986,15]
[394165296,1763338253151,-500.0,0.00036986,2]
[394165297,1763338253161,-151.0,0.00036999,5]
[394165298,1763338253172,-151.0,0.00036999,5]
[394165299,1763338253182,-151.0,0.00036999,5]
[394165300,1763338253193,-250.0,0.00036999,5]
[394165301,1763338253203,-151.0,0.00036999,5]
[394165302,1763338253214,-250.0,0.00036999,5]
[394165303,1763338253223,-209.2023078,0.00036999,5]
[394165304,1763338253234,-250.0,0.00036999,5]
[394165305,1763338253246,-500.0,0.00036999,5]
[394165306,1763338253256,-250.0,0.00036999,5]
[394165307,1763338253266,-250.0,0.00036999,5]
[394165308,1763338253276,-500.0,0.00036999,5]
[394165309,1763338253286,-322.6107,0.00036999,5]
[394165310,1763338253295,-250.0,0.00036999,5]
[394165311,1763338253305,-500.0,0.00036999,5]
[394165312,1763338253315,-334.5472959,0.00036999,5]
[394165313,1763338253325,-250.0,0.00036999,5]
[394165314,1763338253335,-346.92554585,0.00036999,5]
[394165315,1763338253345,-500.0,0.00036999,5]
[394165316,1763338253355,-250.0,0.00036999,5]
[394165317,1763338253365,-500.0,0.00036999,5]
[394165318,1763338253375,-359.76179104,0.00036999,5]
[394165319,1763338253385,-250.0,0.00036999,5]